[Event "*** SCC Grand Prix: Titled Tuesday Blitz"]
[Site "Chess.com"]
[Date "2020.10.13"]
[Round "4"]
[White "Chesswizard_2007"]
[Black "GM_Levan_Pantsulaia"]
[Result "0-1"]
[WhiteElo "2566"]
[BlackElo "2807"]
[TimeControl "180+1"]
[EndTime "10:39:29 PDT"]
[Termination "GM_Levan_Pantsulaia won by checkmate"]

1. Na3 {[%clk 0:02:57.8]} 1... d5 {[%clk 0:02:59.1]} 2. Nf3 {[%clk 0:02:56.3]}
2... Nf6 {[%clk 0:02:58.5]} 3. e3 {[%clk 0:02:55.2]} 3... Bf5 {[%clk 0:02:53.1]}
4. c4 {[%clk 0:02:54.5]} 4... e6 {[%clk 0:02:49.2]} 5. b3 {[%clk 0:02:54]} 5...
c5 {[%clk 0:02:44.9]} 6. Nc2 {[%clk 0:02:52.7]} 6... Nc6 {[%clk 0:02:41.1]} 7.
Be2 {[%clk 0:02:45.6]} 7... Be7 {[%clk 0:02:34.5]} 8. O-O {[%clk 0:02:45.4]}
8... O-O {[%clk 0:02:33.8]} 9. Bb2 {[%clk 0:02:41]} 9... h6 {[%clk 0:02:29.4]}
10. cxd5 {[%clk 0:02:39]} 10... Nxd5 {[%clk 0:02:18.3]} 11. d3 {[%clk
0:02:38.3]} 11... Bf6 {[%clk 0:02:12.8]} 12. Bxf6 {[%clk 0:02:32.8]} 12... Qxf6
{[%clk 0:02:12]} 13. Qd2 {[%clk 0:02:24.8]} 13... Nc3 {[%clk 0:02:12.1]} 14.
Rfc1 {[%clk 0:02:03]} 14... Rfd8 {[%clk 0:02:08.7]} 15. Nce1 {[%clk 0:01:53.8]}
15... Nxe2+ {[%clk 0:01:53.5]} 16. Qxe2 {[%clk 0:01:54.7]} 16... Rd7 {[%clk
0:01:53.4]} 17. h3 {[%clk 0:01:46.1]} 17... Rad8 {[%clk 0:01:52.7]} 18. e4
{[%clk 0:01:46.1]} 18... Bg6 {[%clk 0:01:49]} 19. Qe3 {[%clk 0:01:41.8]} 19...
b6 {[%clk 0:01:46.2]} 20. Rd1 {[%clk 0:01:40.6]} 20... Nb4 {[%clk 0:01:43.3]}
21. Kh2 {[%clk 0:01:15.9]} 21... Nxd3 {[%clk 0:01:37.7]} 22. Nxd3 {[%clk
0:01:15.5]} 22... Rxd3 {[%clk 0:01:36.6]} 23. Rxd3 {[%clk 0:01:13.5]} 23... Rxd3
{[%clk 0:01:35.3]} 24. Qxd3 {[%clk 0:01:12.6]} 24... Qxa1 {[%clk 0:01:35.8]} 25.
a4 {[%clk 0:00:39]} 25... Kh7 {[%clk 0:01:34.9]} 26. h4 {[%clk 0:00:37.8]} 26...
Qb2 {[%clk 0:01:25.3]} 27. g4 {[%clk 0:00:35.7]} 27... Qxf2+ {[%clk 0:01:19.8]}
28. Kh3 {[%clk 0:00:35.9]} 28... f6 {[%clk 0:01:11.4]} 29. h5 {[%clk 0:00:33.3]}
29... Be8 {[%clk 0:01:10.3]} 30. e5+ {[%clk 0:00:33.3]} 30... f5 {[%clk
0:00:57.4]} 31. gxf5 {[%clk 0:00:32.9]} 31... Bxh5 {[%clk 0:00:55]} 32. Nh4
{[%clk 0:00:13.3]} 32... exf5 {[%clk 0:00:55]} 33. Qxf5+ {[%clk 0:00:08.6]}
33... Qxf5+ {[%clk 0:00:53.8]} 34. Nxf5 {[%clk 0:00:09.5]} 34... Bf7 {[%clk
0:00:53.8]} 35. Nd6 {[%clk 0:00:03.6]} 35... Bxb3 {[%clk 0:00:53.5]} 36. a5
{[%clk 0:00:03.5]} 36... bxa5 {[%clk 0:00:52.9]} 37. Nb5 {[%clk 0:00:02.9]}
37... a4 {[%clk 0:00:52.4]} 38. Kg4 {[%clk 0:00:02.3]} 38... Kg6 {[%clk
0:00:51.5]} 39. Kf4 {[%clk 0:00:02.6]} 39... Kf7 {[%clk 0:00:47.5]} 40. Nxa7
{[%clk 0:00:01.7]} 40... a3 {[%clk 0:00:46.8]} 41. e6+ {[%clk 0:00:02.3]} 41...
Bxe6 {[%clk 0:00:45.4]} 42. Nb5 {[%clk 0:00:03.2]} 42... a2 {[%clk 0:00:45.7]}
43. Nd6+ {[%clk 0:00:03.8]} 43... Kg8 {[%clk 0:00:45.6]} 44. Ne4 {[%clk
0:00:04.7]} 44... a1=Q {[%clk 0:00:44.5]} 45. Nf2 {[%clk 0:00:05.6]} 45... Qd4+
{[%clk 0:00:43.6]} 46. Kg3 {[%clk 0:00:06.5]} 46... Qe3+ {[%clk 0:00:42.4]} 47.
Kg2 {[%clk 0:00:06.5]} 47... Bd5+ {[%clk 0:00:42.5]} 48. Kg1 {[%clk 0:00:06.4]}
48... Qe1+ {[%clk 0:00:42.5]} 49. Kh2 {[%clk 0:00:05.7]} 49... Qxf2+ {[%clk
0:00:43]} 50. Kh3 {[%clk 0:00:06.6]} 50... Be6# {[%clk 0:00:43.4]} 0-1

[Event "*** SCC Grand Prix: Titled Tuesday Blitz"]
[Site "Chess.com"]
[Date "2020.10.13"]
[Round "4"]
[White "esapunov"]
[Black "redbaron8888"]
[Result "0-1"]
[WhiteElo "2642"]
[BlackElo "2518"]
[TimeControl "180+1"]
[EndTime "10:39:31 PDT"]
[Termination "redbaron8888 won by resignation"]

1. c4 {[%clk 0:03:00.9]} 1... e6 {[%clk 0:02:57.6]} 2. Nf3 {[%clk 0:03:01]} 2...
b6 {[%clk 0:02:57.4]} 3. g3 {[%clk 0:02:59.5]} 3... Bb7 {[%clk 0:02:57.4]} 4.
Bg2 {[%clk 0:03:00.2]} 4... g6 {[%clk 0:02:49.9]} 5. O-O {[%clk 0:02:58.8]} 5...
Bg7 {[%clk 0:02:49.9]} 6. d4 {[%clk 0:02:59.3]} 6... Ne7 {[%clk 0:02:47.2]} 7.
Nc3 {[%clk 0:02:49.8]} 7... O-O {[%clk 0:02:45.4]} 8. e4 {[%clk 0:02:47]} 8...
d6 {[%clk 0:02:40.2]} 9. Re1 {[%clk 0:02:35.9]} 9... Nd7 {[%clk 0:02:39.2]} 10.
b3 {[%clk 0:02:32.6]} 10... a6 {[%clk 0:02:37.4]} 11. Bb2 {[%clk 0:02:31.5]}
11... e5 {[%clk 0:02:34.3]} 12. d5 {[%clk 0:02:29.8]} 12... Bc8 {[%clk
0:02:32.6]} 13. b4 {[%clk 0:02:28.6]} 13... h6 {[%clk 0:02:28.3]} 14. Nh4 {[%clk
0:02:24.4]} 14... f5 {[%clk 0:02:24.6]} 15. exf5 {[%clk 0:02:24.1]} 15... g5
{[%clk 0:02:01.7]} 16. Ng6 {[%clk 0:02:19.7]} 16... Rxf5 {[%clk 0:01:57.5]} 17.
Nxe7+ {[%clk 0:02:18.3]} 17... Qxe7 {[%clk 0:01:58.4]} 18. Qc2 {[%clk
0:02:13.9]} 18... Nf8 {[%clk 0:01:54.8]} 19. Ne4 {[%clk 0:02:06.8]} 19... Rf7
{[%clk 0:01:52.1]} 20. Bc3 {[%clk 0:02:06.3]} 20... Bf5 {[%clk 0:01:50.7]} 21.
a4 {[%clk 0:02:06.2]} 21... Nd7 {[%clk 0:01:45.5]} 22. Qd2 {[%clk 0:02:00.2]}
22... Raf8 {[%clk 0:01:38.1]} 23. a5 {[%clk 0:01:53.5]} 23... Bxe4 {[%clk
0:01:37.2]} 24. Bxe4 {[%clk 0:01:53]} 24... Rxf2 {[%clk 0:01:35.3]} 25. Qxf2
{[%clk 0:01:52.8]} 25... Rxf2 {[%clk 0:01:36.2]} 26. Kxf2 {[%clk 0:01:53.3]}
26... Nf6 {[%clk 0:01:37.1]} 27. Bf5 {[%clk 0:01:51.1]} 27... b5 {[%clk
0:01:32.7]} 28. cxb5 {[%clk 0:01:47.8]} 28... Nxd5 {[%clk 0:01:31.7]} 29. Bd2
{[%clk 0:01:33.5]} 29... e4 {[%clk 0:01:19.1]} 30. Ra3 {[%clk 0:01:19.9]} 30...
Bd4+ {[%clk 0:01:18.3]} 31. Kg2 {[%clk 0:01:16.3]} 31... e3 {[%clk 0:01:18.5]}
32. Bc1 {[%clk 0:01:13.5]} 32... Qe5 {[%clk 0:01:03.4]} 33. Bg4 {[%clk
0:01:01.8]} 33... Nxb4 {[%clk 0:01:01.7]} 34. bxa6 {[%clk 0:00:57.9]} 34... Nc2
{[%clk 0:00:59.2]} 35. Re2 {[%clk 0:00:45.9]} 35... Nxa3 {[%clk 0:00:57]} 36.
Bxa3 {[%clk 0:00:46.1]} 36... Qxa5 {[%clk 0:00:54.8]} 37. Bc1 {[%clk 0:00:42.4]}
37... Qxa6 {[%clk 0:00:40]} 38. Bxe3 {[%clk 0:00:42.2]} 38... Bxe3 {[%clk
0:00:38.9]} 39. Rxe3 {[%clk 0:00:41.6]} 39... Qb6 {[%clk 0:00:36]} 40. Kf3
{[%clk 0:00:40.5]} 40... Kf8 {[%clk 0:00:29.5]} 41. Bf5 {[%clk 0:00:38.7]} 41...
d5 {[%clk 0:00:28.2]} 42. Re6 {[%clk 0:00:37.2]} 42... Qb3+ {[%clk 0:00:28.2]}
43. Kg4 {[%clk 0:00:36.3]} 43... d4 {[%clk 0:00:20.6]} 44. Kh5 {[%clk
0:00:34.9]} 44... d3 {[%clk 0:00:17.3]} 45. Re3 {[%clk 0:00:28.4]} 45... d2
{[%clk 0:00:15.6]} 46. Bg4 {[%clk 0:00:17.9]} 46... Qxe3 {[%clk 0:00:14.5]} 0-1

[Event "*** SCC Grand Prix: Titled Tuesday Blitz"]
[Site "Chess.com"]
[Date "2020.10.13"]
[Round "4"]
[White "Sashadav97"]
[Black "BursaBBSatranc"]
[Result "1-0"]
[WhiteElo "2602"]
[BlackElo "2597"]
[TimeControl "180+1"]
[EndTime "10:39:32 PDT"]
[Termination "Sashadav97 won on time"]

1. d4 {[%clk 0:03:00.9]} 1... d5 {[%clk 0:02:59.8]} 2. c4 {[%clk 0:03:01.1]}
2... c6 {[%clk 0:02:59.5]} 3. Nf3 {[%clk 0:03:00.3]} 3... Nf6 {[%clk 0:02:59.6]}
4. Nc3 {[%clk 0:03:00.9]} 4... a6 {[%clk 0:02:59.5]} 5. a4 {[%clk 0:02:58.1]}
5... e6 {[%clk 0:02:58.3]} 6. Bf4 {[%clk 0:02:57.5]} 6... Be7 {[%clk 0:02:51.7]}
7. e3 {[%clk 0:02:52]} 7... O-O {[%clk 0:02:51.5]} 8. cxd5 {[%clk 0:02:39.4]}
8... exd5 {[%clk 0:02:44.2]} 9. Bd3 {[%clk 0:02:37]} 9... Bg4 {[%clk 0:02:16.9]}
10. h3 {[%clk 0:02:35.6]} 10... Bh5 {[%clk 0:02:14.5]} 11. g4 {[%clk 0:02:30.5]}
11... Bg6 {[%clk 0:02:13.9]} 12. Ne5 {[%clk 0:02:31.1]} 12... Bxd3 {[%clk
0:02:10]} 13. Qxd3 {[%clk 0:02:32]} 13... a5 {[%clk 0:02:04.9]} 14. O-O {[%clk
0:02:30]} 14... Na6 {[%clk 0:02:05]} 15. Bg3 {[%clk 0:02:21.1]} 15... Nb4 {[%clk
0:01:55.9]} 16. Qe2 {[%clk 0:02:19.9]} 16... Re8 {[%clk 0:01:50.9]} 17. f3
{[%clk 0:02:13.4]} 17... Bd6 {[%clk 0:01:43.1]} 18. Rad1 {[%clk 0:02:01.8]}
18... Qc7 {[%clk 0:01:13.3]} 19. f4 {[%clk 0:01:52.5]} 19... Nd7 {[%clk
0:01:07.6]} 20. g5 {[%clk 0:01:48.5]} 20... Nf8 {[%clk 0:00:50.7]} 21. Kh1
{[%clk 0:01:31]} 21... Qe7 {[%clk 0:00:21.7]} 22. Qg4 {[%clk 0:01:14.4]} 22...
Ne6 {[%clk 0:00:15.1]} 23. h4 {[%clk 0:01:02.9]} 23... Bxe5 {[%clk 0:00:15.1]}
24. dxe5 {[%clk 0:00:54]} 24... g6 {[%clk 0:00:11]} 25. f5 {[%clk 0:00:54.2]}
25... Nc5 {[%clk 0:00:10]} 26. e6 {[%clk 0:00:37.8]} 26... gxf5 {[%clk
0:00:08.4]} 27. exf7+ {[%clk 0:00:37.1]} 27... Qxf7 {[%clk 0:00:08.9]} 28. Rxf5
{[%clk 0:00:35.5]} 28... Qe7 {[%clk 0:00:07.8]} 29. g6 {[%clk 0:00:30.3]} 29...
h6 {[%clk 0:00:05.9]} 30. Bf4 {[%clk 0:00:29.7]} 30... Ne4 {[%clk 0:00:03.9]}
31. Bxh6 {[%clk 0:00:24.9]} 31... Nc2 {[%clk 0:00:02.7]} 32. Rdf1 {[%clk
0:00:11.9]} 32... Nxc3 {[%clk 0:00:02.8]} 33. bxc3 {[%clk 0:00:11.8]} 33... Qe4+
{[%clk 0:00:02.4]} 34. Qxe4 {[%clk 0:00:11.3]} 34... dxe4 {[%clk 0:00:02.5]} 35.
Rd1 {[%clk 0:00:08.1]} 1-0

[Event "*** SCC Grand Prix: Titled Tuesday Blitz"]
[Site "Chess.com"]
[Date "2020.10.13"]
[Round "4"]
[White "A-S-00"]
[Black "TotsukaBlade"]
[Result "1-0"]
[WhiteElo "2274"]
[BlackElo "2396"]
[TimeControl "180+1"]
[EndTime "10:39:33 PDT"]
[Termination "A-S-00 won by resignation"]

1. d4 {[%clk 0:02:59.7]} 1... d5 {[%clk 0:03:00]} 2. Nf3 {[%clk 0:02:59.5]} 2...
Nf6 {[%clk 0:02:59.9]} 3. c4 {[%clk 0:02:59.6]} 3... dxc4 {[%clk 0:03:00.5]} 4.
a4 {[%clk 0:02:56.9]} 4... a6 {[%clk 0:03:00.2]} 5. Nc3 {[%clk 0:02:54.8]} 5...
Nc6 {[%clk 0:02:56.9]} 6. e3 {[%clk 0:02:52.8]} 6... Bg4 {[%clk 0:02:53.1]} 7.
Bxc4 {[%clk 0:02:51.5]} 7... e6 {[%clk 0:02:52.3]} 8. O-O {[%clk 0:02:50.6]}
8... Bd6 {[%clk 0:02:48.5]} 9. h3 {[%clk 0:02:50.2]} 9... Bh5 {[%clk 0:02:47.2]}
10. Qe2 {[%clk 0:02:48.7]} 10... O-O {[%clk 0:02:46.9]} 11. Rd1 {[%clk
0:02:48.1]} 11... Qe7 {[%clk 0:02:47.1]} 12. g4 {[%clk 0:02:38.5]} 12... Bg6
{[%clk 0:02:46.9]} 13. e4 {[%clk 0:02:38.3]} 13... e5 {[%clk 0:02:40]} 14. d5
{[%clk 0:02:33.6]} 14... Nd4 {[%clk 0:02:05.1]} 15. Qd3 {[%clk 0:02:20.8]} 15...
Nxf3+ {[%clk 0:01:55]} 16. Qxf3 {[%clk 0:02:19.8]} 16... Nd7 {[%clk 0:01:52.4]}
17. Kg2 {[%clk 0:02:12.4]} 17... Bb4 {[%clk 0:01:37.2]} 18. d6 {[%clk
0:02:01.6]} 18... Bxd6 {[%clk 0:01:31.2]} 19. Nd5 {[%clk 0:02:01]} 19... Qd8
{[%clk 0:01:30.2]} 20. Ne3 {[%clk 0:01:50.6]} 20... Nc5 {[%clk 0:01:24.2]} 21.
Nf5 {[%clk 0:01:49.6]} 21... Bxf5 {[%clk 0:01:16.1]} 22. Qxf5 {[%clk 0:01:47.9]}
22... Qe7 {[%clk 0:00:59.6]} 23. Bg5 {[%clk 0:01:35.3]} 23... Qd7 {[%clk
0:00:59.6]} 24. Qf3 {[%clk 0:01:27.2]} 24... Nxa4 {[%clk 0:00:48.4]} 25. Rd2
{[%clk 0:01:13.6]} 25... Nc5 {[%clk 0:00:42]} 26. h4 {[%clk 0:01:08.9]} 26...
Ne6 {[%clk 0:00:26.7]} 27. Be3 {[%clk 0:01:07.6]} 27... Qe7 {[%clk 0:00:21.5]}
28. g5 {[%clk 0:01:00.5]} 28... Nf4+ {[%clk 0:00:20.3]} 29. Bxf4 {[%clk
0:00:56.5]} 29... exf4 {[%clk 0:00:21.2]} 30. Bd5 {[%clk 0:00:51.1]} 30... c6
{[%clk 0:00:20.6]} 31. Bb3 {[%clk 0:00:49]} 31... Rad8 {[%clk 0:00:19.9]} 32.
Rad1 {[%clk 0:00:42.8]} 32... Be5 {[%clk 0:00:19.7]} 33. Qg4 {[%clk 0:00:37.7]}
33... Rxd2 {[%clk 0:00:18.2]} 34. Rxd2 {[%clk 0:00:37.5]} 34... Rd8 {[%clk
0:00:18.4]} 35. Rxd8+ {[%clk 0:00:27]} 35... Qxd8 {[%clk 0:00:18.1]} 36. Qf5
{[%clk 0:00:26.8]} 36... Qc7 {[%clk 0:00:15]} 37. h5 {[%clk 0:00:25.5]} 37... h6
{[%clk 0:00:09.3]} 38. g6 {[%clk 0:00:20]} 38... Qe7 {[%clk 0:00:07.2]} 39.
gxf7+ {[%clk 0:00:18]} 39... Kf8 {[%clk 0:00:07.5]} 40. Qc8+ {[%clk 0:00:16.8]}
1-0

[Event "*** SCC Grand Prix: Titled Tuesday Blitz"]
[Site "Chess.com"]
[Date "2020.10.13"]
[Round "4"]
[White "Falcon28dz"]
[Black "parnali1611"]
[Result "1-0"]
[WhiteElo "2290"]
[BlackElo "2144"]
[TimeControl "180+1"]
[EndTime "10:39:33 PDT"]
[Termination "Falcon28dz won on time"]

1. e4 {[%clk 0:03:00.9]} 1... e5 {[%clk 0:02:59.8]} 2. Nf3 {[%clk 0:03:00]} 2...
Nc6 {[%clk 0:02:59.7]} 3. Bc4 {[%clk 0:02:59.8]} 3... Nf6 {[%clk 0:02:59.1]} 4.
d3 {[%clk 0:02:58.7]} 4... Bc5 {[%clk 0:02:57.9]} 5. O-O {[%clk 0:02:57.2]} 5...
O-O {[%clk 0:02:55.4]} 6. Nbd2 {[%clk 0:02:55.5]} 6... d6 {[%clk 0:02:54.3]} 7.
c3 {[%clk 0:02:55.7]} 7... Be6 {[%clk 0:02:54.1]} 8. Bb5 {[%clk 0:02:53]} 8...
Bb6 {[%clk 0:02:39.5]} 9. h3 {[%clk 0:02:48.2]} 9... Ne7 {[%clk 0:02:38.5]} 10.
Re1 {[%clk 0:02:36.2]} 10... Ng6 {[%clk 0:02:34.9]} 11. Nf1 {[%clk 0:02:30.8]}
11... Nh5 {[%clk 0:02:29.5]} 12. d4 {[%clk 0:01:55.8]} 12... a6 {[%clk
0:02:12.8]} 13. Ba4 {[%clk 0:01:47.3]} 13... Qc8 {[%clk 0:01:57.8]} 14. Ng5
{[%clk 0:00:46.4]} 14... Nhf4 {[%clk 0:01:51.9]} 15. Ng3 {[%clk 0:00:42.4]}
15... Bxh3 {[%clk 0:01:30.7]} 16. Nxh3 {[%clk 0:00:37.6]} 16... Nxh3+ {[%clk
0:01:28.9]} 17. gxh3 {[%clk 0:00:38.5]} 17... Qxh3 {[%clk 0:01:28.8]} 18. Qf3
{[%clk 0:00:25]} 18... exd4 {[%clk 0:01:23.1]} 19. Qg2 {[%clk 0:00:21.4]} 19...
Qe6 {[%clk 0:00:48.9]} 20. Nf5 {[%clk 0:00:21.3]} 20... dxc3 {[%clk 0:00:45.5]}
21. bxc3 {[%clk 0:00:17.4]} 21... Qe5 {[%clk 0:00:44.2]} 22. Bb3 {[%clk
0:00:12.5]} 22... Qxc3 {[%clk 0:00:37.7]} 23. Bg5 {[%clk 0:00:12.6]} 23... Rae8
{[%clk 0:00:28.6]} 24. Rac1 {[%clk 0:00:12.4]} 24... Qb2 {[%clk 0:00:27.3]} 25.
Rc2 {[%clk 0:00:11.1]} 25... Qe5 {[%clk 0:00:25.7]} 26. Bc1 {[%clk 0:00:09.4]}
26... Ba5 {[%clk 0:00:22.1]} 27. Bb2 {[%clk 0:00:08.9]} 27... Qf4 {[%clk
0:00:18.5]} 28. Ree2 {[%clk 0:00:09.2]} 28... Bb6 {[%clk 0:00:07.5]} 29. Nxg7
{[%clk 0:00:09]} 29... Re5 {[%clk 0:00:06.6]} 30. Nf5 {[%clk 0:00:09.2]} 30...
Rxf5 {[%clk 0:00:05.2]} 31. exf5 {[%clk 0:00:10.1]} 31... Qxf5 {[%clk
0:00:05.4]} 32. Bc4 {[%clk 0:00:09.3]} 32... d5 {[%clk 0:00:03.9]} 33. Bxd5
{[%clk 0:00:09.5]} 33... Rd8 {[%clk 0:00:02.4]} 34. Be4 {[%clk 0:00:10.1]} 34...
Rd1+ {[%clk 0:00:01.6]} 35. Kh2 {[%clk 0:00:10.5]} 1-0

[Event "*** SCC Grand Prix: Titled Tuesday Blitz"]
[Site "Chess.com"]
[Date "2020.10.13"]
[Round "4"]
[White "Harsha_Bharathakoti"]
[Black "PSvidler"]
[Result "1/2-1/2"]
[WhiteElo "2762"]
[BlackElo "2902"]
[TimeControl "180+1"]
[EndTime "10:39:34 PDT"]
[Termination "Game drawn by agreement"]

1. d4 {[%clk 0:03:00.9]} 1... d6 {[%clk 0:02:56.3]} 2. e4 {[%clk 0:02:56.1]}
2... Nf6 {[%clk 0:02:55.9]} 3. Nc3 {[%clk 0:02:56]} 3... g6 {[%clk 0:02:56]} 4.
Nf3 {[%clk 0:02:47.6]} 4... Bg7 {[%clk 0:02:55.9]} 5. h3 {[%clk 0:02:47.3]} 5...
O-O {[%clk 0:02:54.8]} 6. Be2 {[%clk 0:02:47.5]} 6... a6 {[%clk 0:02:34.1]} 7.
a4 {[%clk 0:02:36]} 7... b6 {[%clk 0:02:33.8]} 8. O-O {[%clk 0:02:33.4]} 8... e6
{[%clk 0:02:30.5]} 9. e5 {[%clk 0:02:20.2]} 9... dxe5 {[%clk 0:02:23.2]} 10.
Nxe5 {[%clk 0:02:15.1]} 10... Bb7 {[%clk 0:02:19.6]} 11. Bf3 {[%clk 0:02:12.7]}
11... Qc8 {[%clk 0:02:17.6]} 12. Qe2 {[%clk 0:01:48.9]} 12... c5 {[%clk
0:01:57.7]} 13. dxc5 {[%clk 0:01:38.6]} 13... bxc5 {[%clk 0:01:56.7]} 14. Be3
{[%clk 0:01:32.5]} 14... Nbd7 {[%clk 0:01:54]} 15. Nc4 {[%clk 0:01:30.4]} 15...
Nd5 {[%clk 0:01:30.6]} 16. Nxd5 {[%clk 0:01:28.8]} 16... Bxd5 {[%clk 0:01:30.3]}
17. Rfd1 {[%clk 0:01:20.3]} 17... Bxc4 {[%clk 0:01:27.3]} 18. Qxc4 {[%clk
0:01:19.3]} 18... Ne5 {[%clk 0:01:27.9]} 19. Qe4 {[%clk 0:00:52.5]} 19... Nxf3+
{[%clk 0:01:24.1]} 20. Qxf3 {[%clk 0:00:53.4]} 20... Bxb2 {[%clk 0:01:24.5]} 21.
Rab1 {[%clk 0:00:53.5]} 21... Bg7 {[%clk 0:01:25.1]} 22. Rb6 {[%clk 0:00:45.2]}
22... Rb8 {[%clk 0:01:19]} 23. Rc6 {[%clk 0:00:33.3]} 23... Qb7 {[%clk 0:01:19]}
24. Rxc5 {[%clk 0:00:32.9]} 24... Qb4 {[%clk 0:01:08.5]} 25. Qc6 {[%clk
0:00:26.3]} 25... h5 {[%clk 0:01:04.8]} 26. Qxa6 {[%clk 0:00:24.8]} 26... Ra8
{[%clk 0:01:04.5]} 27. Qb5 {[%clk 0:00:21.9]} 27... Rxa4 {[%clk 0:01:04.1]} 28.
Qxb4 {[%clk 0:00:22.2]} 28... Rxb4 {[%clk 0:01:04.3]} 29. Rc7 {[%clk 0:00:23.1]}
29... Rbb8 {[%clk 0:00:57.2]} 30. g3 {[%clk 0:00:22]} 30... Rbc8 {[%clk
0:00:57.2]} 31. Rdd7 {[%clk 0:00:22.1]} 31... Be5 {[%clk 0:00:56.7]} 32. Rxc8
{[%clk 0:00:17.8]} 32... Rxc8 {[%clk 0:00:56.3]} 33. Rd2 {[%clk 0:00:18.4]}
33... Kg7 {[%clk 0:00:55.5]} 34. Kg2 {[%clk 0:00:18.8]} 34... Rc3 {[%clk
0:00:55.2]} 35. h4 {[%clk 0:00:18.4]} 35... Kf6 {[%clk 0:00:51.9]} 36. Bg5+
{[%clk 0:00:17.6]} 36... Kf5 {[%clk 0:00:50.8]} 37. Re2 {[%clk 0:00:18.5]} 37...
f6 {[%clk 0:00:48.4]} 38. Bc1 {[%clk 0:00:18.2]} 38... Bd6 {[%clk 0:00:46.5]}
39. Bb2 {[%clk 0:00:16.7]} 39... Rc4 {[%clk 0:00:46.6]} 40. Rd2 {[%clk
0:00:16.1]} 40... Bb4 {[%clk 0:00:46.1]} 41. Rd4 {[%clk 0:00:12.4]} 41... Rxd4
{[%clk 0:00:44.2]} 42. Bxd4 {[%clk 0:00:13.3]} 42... e5 {[%clk 0:00:44.6]} 43.
Be3 {[%clk 0:00:08.5]} 43... Ke4 {[%clk 0:00:44.7]} 44. Bh6 {[%clk 0:00:09.1]}
44... Kd5 {[%clk 0:00:42.4]} 45. Kf3 {[%clk 0:00:08.7]} 45... f5 {[%clk
0:00:40.4]} 46. Ke2 {[%clk 0:00:08.5]} 46... Bc5 {[%clk 0:00:39]} 47. Be3 {[%clk
0:00:08.7]} 47... Bd6 {[%clk 0:00:38.5]} 48. Bd2 {[%clk 0:00:06.7]} 48... e4
{[%clk 0:00:37.7]} 49. Be3 {[%clk 0:00:06.8]} 1/2-1/2

[Event "*** SCC Grand Prix: Titled Tuesday Blitz"]
[Site "Chess.com"]
[Date "2020.10.13"]
[Round "4"]
[White "Artem_Sadovsky"]
[Black "LubovMarkelova"]
[Result "0-1"]
[WhiteElo "2493"]
[BlackElo "2249"]
[TimeControl "180+1"]
[EndTime "10:39:34 PDT"]
[Termination "LubovMarkelova won by resignation"]

1. Nf3 {[%clk 0:02:59.3]} 1... d5 {[%clk 0:00:47.7]} 2. c4 {[%clk 0:00:41.7]}
2... c6 {[%clk 0:00:45.7]} 3. b3 {[%clk 0:00:41.1]} 3... Nf6 {[%clk 0:00:45.8]}
4. Bb2 {[%clk 0:00:41.7]} 4... Bf5 {[%clk 0:00:46.5]} 5. e3 {[%clk 0:00:42.3]}
5... e6 {[%clk 0:00:46.9]} 6. Be2 {[%clk 0:00:42.9]} 6... h6 {[%clk 0:00:47.4]}
7. O-O {[%clk 0:00:43.5]} 7... Nbd7 {[%clk 0:00:47.7]} 8. Nc3 {[%clk 0:00:43.8]}
8... Be7 {[%clk 0:00:47.8]} 9. d3 {[%clk 0:00:43.2]} 9... O-O {[%clk 0:00:47.9]}
10. Qc2 {[%clk 0:00:43.7]} 10... a5 {[%clk 0:00:46.9]} 11. Rad1 {[%clk
0:00:43.1]} 11... Qb6 {[%clk 0:00:46.2]} 12. Qc1 {[%clk 0:00:34.1]} 12... Rfd8
{[%clk 0:00:43.7]} 13. Qa1 {[%clk 0:00:34.4]} 13... Bh7 {[%clk 0:00:41.4]} 14.
Rfe1 {[%clk 0:00:23.8]} 14... Qc7 {[%clk 0:00:40.3]} 15. Rc1 {[%clk 0:00:23.2]}
15... dxc4 {[%clk 0:00:34.1]} 16. bxc4 {[%clk 0:00:22.9]} 16... Nc5 {[%clk
0:00:33.7]} 17. d4 {[%clk 0:00:23.4]} 17... Nce4 {[%clk 0:00:33.3]} 18. Nxe4
{[%clk 0:00:23.1]} 18... Nxe4 {[%clk 0:00:33.4]} 19. d5 {[%clk 0:00:21]} 19...
Bf6 {[%clk 0:00:28.5]} 20. dxe6 {[%clk 0:00:19.9]} 20... fxe6 {[%clk 0:00:26]}
21. Bxf6 {[%clk 0:00:20.4]} 21... Nxf6 {[%clk 0:00:25.5]} 22. Ne5 {[%clk
0:00:19.9]} 22... Rd2 {[%clk 0:00:22.3]} 23. Bf3 {[%clk 0:00:19.2]} 23... Rad8
{[%clk 0:00:20.4]} 24. Qc3 {[%clk 0:00:17.1]} 24... Rxa2 {[%clk 0:00:19.1]} 25.
c5 {[%clk 0:00:15.8]} 25... Rdd2 {[%clk 0:00:17.1]} 26. Rf1 {[%clk 0:00:12.1]}
26... Ne4 {[%clk 0:00:15.3]} 27. Bxe4 {[%clk 0:00:11.7]} 27... Bxe4 {[%clk
0:00:14.5]} 28. Nc4 {[%clk 0:00:12]} 28... Re2 {[%clk 0:00:07.3]} 29. Qd4 {[%clk
0:00:11.7]} 29... Bd5 {[%clk 0:00:07]} 30. Nd6 {[%clk 0:00:10.9]} 30... Qe7
{[%clk 0:00:06.5]} 31. Qf4 {[%clk 0:00:09.3]} 31... Qg5 {[%clk 0:00:04.7]} 32.
Qxg5 {[%clk 0:00:08.8]} 32... hxg5 {[%clk 0:00:05.6]} 33. Nxb7 {[%clk
0:00:08.1]} 33... a4 {[%clk 0:00:05]} 34. Ra1 {[%clk 0:00:08.3]} 34... a3 {[%clk
0:00:05.2]} 35. Rxa2 {[%clk 0:00:08.3]} 35... Rxa2 {[%clk 0:00:06.1]} 36. Na5
{[%clk 0:00:06.2]} 36... Rb2 {[%clk 0:00:06.5]} 0-1